bitfinex/quotes_BTCUSD_20251215
["timestamp","ask_amount","ask_price","bid_price","bid_amount"]
[1765821524047,2.18549251,85841.0,85840.0,7.9872738]
[1765821524390,2.17849251,85841.0,85840.0,7.37398031]
[1765821524600,2.19326218,85841.0,85840.0,7.19540833]
[1765821524829,2.18249251,85841.0,85840.0,7.03728415]
[1765821525036,2.17849251,85841.0,85840.0,6.79853942]
[1765821525248,2.17978187,85841.0,85840.0,6.68548907]
[1765821525455,2.17978187,85841.0,85840.0,6.43335893]
[1765821525667,2.17978187,85841.0,85840.0,6.02891885]
[1765821525870,2.17978187,85841.0,85840.0,5.86868209]
[1765821526074,2.18278187,85841.0,85840.0,5.6533255]
[1765821526280,2.18278187,85841.0,85840.0,5.41394611]
[1765821526492,2.17978187,85841.0,85840.0,5.3419621]
[1765821526696,2.17978187,85841.0,85840.0,4.80199843]
[1765821526899,2.18278187,85841.0,85840.0,4.69663176]
[1765821527105,2.18278187,85841.0,85840.0,4.46556734]
[1765821527313,2.1796215,85841.0,85840.0,4.20872723]
[1765821527736,2.1796215,85841.0,85840.0,3.61536405]
[1765821527957,2.1796215,85841.0,85840.0,3.46360185]
[1765821528165,2.1796215,85841.0,85840.0,3.40721862]
[1765821528549,2.1746215,85841.0,85840.0,3.40721862]
[1765821528753,2.1816215,85841.0,85840.0,3.40821862]
[1765821528952,2.1971815,85841.0,85840.0,3.40821862]
[1765821529197,2.17236046,85841.0,85840.0,3.40821862]
[1765821529322,2.20314196,85841.0,85840.0,3.40821862]
[1765821529523,1.20314196,85841.0,85840.0,3.40821862]
[1765821529803,2.19714196,85841.0,85840.0,3.40821862]
[1765821530120,2.19894756,85841.0,85840.0,3.40821862]
[1765821530332,2.19894756,85841.0,85840.0,2.77926166]
[1765821530553,1.19894756,85841.0,85840.0,2.77926166]
[1765821530831,2.19894756,85841.0,85840.0,2.77926166]
[1765821531672,1.19894756,85841.0,85840.0,2.77926166]
[1765821531892,2.19894756,85841.0,85840.0,2.77926166]
[1765821532591,2.19294756,85841.0,85840.0,2.77926166]
[1765821532810,2.19694756,85841.0,85840.0,2.77926166]
[1765821533206,2.16435267,85841.0,85840.0,2.77926166]
[1765821533541,2.18513402,85841.0,85840.0,2.77826166]
[1765821534068,1.00074178,85841.0,85840.0,2.77826166]
[1765821534250,0.92229446,85841.0,85840.0,2.77826166]
[1765821534454,0.92229446,85841.0,85840.0,2.77926166]
[1765821534455,0.92729446,85841.0,85840.0,2.77926166]
[1765821535276,0.92433374,85841.0,85840.0,2.77926166]
[1765821535639,0.92733374,85841.0,85840.0,2.77926166]
[1765821536080,1.21803374,85841.0,85840.0,2.77926166]
[1765821536462,0.92733374,85841.0,85840.0,2.77926166]
[1765821536666,1.21803374,85841.0,85840.0,2.77926166]
[1765821536952,2.49746774,85841.0,85840.0,2.77926166]
[1765821537142,2.49451979,85841.0,85840.0,2.77926166]
[1765821539254,2.50528717,85841.0,85840.0,2.77926166]
[1765821540258,2.62370351,85841.0,85840.0,2.77926166]
[1765821540839,2.62370827,85841.0,85840.0,2.77926166]
[1765821541812,2.36601712,85841.0,85840.0,2.77926166]
[1765821542018,2.38457712,85841.0,85840.0,2.77926166]
[1765821543197,2.38038322,85841.0,85840.0,2.77926166]
[1765821543601,1.18428083,85841.0,85840.0,2.77926166]
[1765821543798,1.19737132,85841.0,85840.0,2.77926166]
[1765821544000,1.15598783,85841.0,85840.0,2.77926166]
[1765821544224,1.15098783,85841.0,85840.0,2.77826166]
[1765821544427,1.14798783,85841.0,85840.0,2.77826166]
[1765821544642,1.20500622,85841.0,85840.0,2.77926166]
[1765821544865,1.20100622,85841.0,85840.0,2.77826166]
[1765821545220,1.19800622,85841.0,85840.0,2.77826166]
[1765821545396,1.19900622,85841.0,85840.0,2.77826166]
[1765821546192,1.23318216,85841.0,85840.0,2.77826166]
[1765821546486,1.23618216,85841.0,85840.0,2.77826166]
[1765821546634,1.19796031,85841.0,85840.0,2.77826166]
[1765821547445,1.2598557,85841.0,85840.0,2.77826166]
[1765821548327,1.19796031,85841.0,85840.0,2.77826166]
[1765821548529,1.19147725,85841.0,85840.0,2.77826166]
[1765821549365,1.18752575,85841.0,85840.0,2.77826166]
[1765821549772,1.2509052,85841.0,85840.0,2.77826166]
[1765821550122,1.13453405,85841.0,85840.0,2.77826166]
[1765821551178,1.13132644,85841.0,85840.0,2.77826166]
[1765821553531,1.06278805,85841.0,85840.0,2.77826166]
[1765821553744,1.16585605,85841.0,85840.0,2.77826166]
[1765821554077,1.10131076,85841.0,85840.0,2.77826166]
[1765821554295,1.15132915,85841.0,85840.0,2.77826166]
[1765821555308,1.2676603,85841.0,85840.0,2.77826166]
[1765821556460,0.56502313,85841.0,85840.0,2.77987453]
[1765821556638,0.75524813,85841.0,85840.0,2.77987453]
[1765821556847,0.66854813,85841.0,85840.0,2.77987453]
[1765821557283,0.66515786,85841.0,85840.0,2.77987453]
[1765821557456,0.78148901,85841.0,85840.0,2.77987453]
[1765821557822,0.66515786,85841.0,85840.0,2.77987453]
[1765821559142,0.95585786,85841.0,85840.0,2.77987453]
[1765821559340,0.94508572,85841.0,85840.0,2.77987453]
[1765821559548,0.95587685,85841.0,85840.0,2.77987453]
[1765821560182,0.95155922,85841.0,85840.0,2.77987453]
[1765821560382,0.94076809,85841.0,85840.0,2.77987453]
[1765821561443,0.95155909,85841.0,85840.0,2.77987453]
[1765821561734,1.03433609,85841.0,85840.0,2.77987453]
[1765821562287,0.33027235,85841.0,85840.0,2.77987453]
[1765821562487,0.03957235,85841.0,85840.0,2.77987453]
[1765821562686,0.09773237,85841.0,85840.0,2.77987453]
[1765821563095,0.03657235,85841.0,85840.0,2.77987453]
[1765821563338,0.011791,85841.0,85840.0,2.77987453]
[1765821563548,0.013791,85841.0,85840.0,2.77987453]
[1765821563736,0.012791,85841.0,85840.0,2.77987453]
[1765821564253,0.010791,85841.0,85840.0,2.77987453]
[1765821564591,0.010791,85841.0,85840.0,2.78087453]
[1765821565007,0.010791,85841.0,85840.0,2.78287453]
[1765821565243,0.04893766,85841.0,85840.0,2.78287453]
[1765821566045,0.06564909,85841.0,85840.0,2.78287453]
[1765821566235,0.10710011,85841.0,85840.0,2.78287453]
[1765821566498,0.06564909,85841.0,85840.0,2.78287453]
[1765821568057,0.06564909,85841.0,85840.0,2.78126166]
[1765821568268,1.05439407,85841.0,85840.0,2.78126166]
[1765821568713,1.05439407,85841.0,85840.0,2.77926166]
[1765821568875,1.11658198,85841.0,85840.0,2.7172534]
[1765821569081,1.11658342,85841.0,85840.0,2.7172534]
[1765821569351,1.05439407,85841.0,85840.0,2.7162534]
[1765821569726,0.95718707,85841.0,85840.0,2.7162534]
[1765821570126,0.95718707,85841.0,85840.0,2.7152534]
[1765821570529,0.95818707,85841.0,85840.0,2.7152534]
[1765821571165,0.896872,85841.0,85840.0,2.7152534]
[1765821571369,0.9543325,85841.0,85840.0,2.7152534]
[1765821573268,1.18732139,85841.0,85840.0,2.7152534]
[1765821574075,1.22233022,85841.0,85840.0,2.7152534]
[1765821574280,1.2802223,85841.0,85840.0,2.7152534]
[1765821574656,1.21803295,85841.0,85840.0,2.7152534]
[1765821574859,0.79016995,85841.0,85840.0,2.7152534]
[1765821575168,0.81504971,85841.0,85840.0,2.7152534]
[1765821575790,0.87723906,85841.0,85840.0,2.7152534]
[1765821575996,0.81504971,85841.0,85840.0,2.7152534]
[1765821577217,0.81119546,85841.0,85840.0,2.7152534]
[1765821578076,0.75978946,85841.0,85840.0,2.7152534]
[1765821578277,0.61939763,85841.0,85840.0,2.7152534]
[1765821578640,0.85177863,85841.0,85840.0,2.7152534]
[1765821578960,0.84919063,85841.0,85840.0,2.7152534]
[1765821579139,0.84618146,85841.0,85840.0,2.7152534]
[1765821579348,0.84818146,85841.0,85840.0,2.7152534]
[1765821579914,0.84718146,85841.0,85840.0,2.7152534]
[1765821580127,0.81484046,85841.0,85840.0,2.7152534]
[1765821580350,0.72589396,85841.0,85840.0,2.7152534]
[1765821580549,0.55792796,85841.0,85840.0,2.7152534]
[1765821580794,0.81316896,85841.0,85840.0,2.7152534]
[1765821581403,0.80026896,85841.0,85840.0,2.7152534]
[1765821581607,0.78860396,85841.0,85840.0,2.7152534]
[1765821582215,0.69150602,85841.0,85840.0,2.7152534]
[1765821582799,0.85714973,85841.0,85840.0,2.7152534]
[1765821583276,0.86794855,85841.0,85840.0,2.7152534]
[1765821583477,0.81869505,85841.0,85840.0,2.7152534]
[1765821584660,0.88089333,85841.0,85840.0,2.7152534]
[1765821584889,0.81869505,85841.0,85840.0,2.7152534]
[1765821585326,0.81478112,85841.0,85840.0,2.7152534]
[1765821586258,0.81478152,85841.0,85840.0,2.7152534]
[1765821586696,0.87698591,85841.0,85840.0,2.7152534]
[1765821587058,0.78528752,85841.0,85840.0,2.7152534]
[1765821588112,0.84145733,85841.0,85840.0,2.7152534]
[1765821588341,0.83743505,85841.0,85840.0,2.7152534]
[1765821588550,0.72403505,85841.0,85840.0,2.7152534]
[1765821588778,0.88511005,85841.0,85840.0,2.7152534]
[1765821589775,0.87210305,85841.0,85840.0,2.7152534]
[1765821590089,0.80104303,85841.0,85840.0,2.7152534]
[1765821590220,0.55315213,85841.0,85840.0,2.7152534]
[1765821590423,0.82364413,85841.0,85840.0,2.7152534]
[1765821590650,0.80204213,85841.0,85840.0,2.7152534]
[1765821590819,0.86020215,85841.0,85840.0,2.7152534]
[1765821591221,0.61131215,85841.0,85840.0,2.7152534]
[1765821591442,0.86020215,85841.0,85840.0,2.7152534]
[1765821592043,0.61131215,85841.0,85840.0,2.7152534]
[1765821592272,0.88600215,85841.0,85840.0,2.7152534]
[1765821592482,0.71202715,85841.0,85840.0,2.7152534]
[1765821593135,0.89980215,85841.0,85840.0,2.7152534]
[1765821593422,0.60707302,85841.0,85840.0,2.7152534]
[1765821593826,0.86886302,85841.0,85840.0,2.7152534]
[1765821595093,0.84648802,85841.0,85840.0,2.7152534]
[1765821596275,0.84262817,85841.0,85840.0,2.7152534]
[1765821596687,0.60963928,85841.0,85840.0,2.7152534]
[1765821596895,0.03111413,85845.0,85844.0,0.23298075]
[1765821597098,0.00999313,85858.0,85844.0,0.23298075]
[1765821597099,0.03111413,85857.0,85851.0,0.23296175]
[1765821597311,0.0004,85864.0,85859.0,0.23294005]
[1765821597312,0.03111413,85861.0,85859.0,0.23294005]
[1765821597518,0.03111413,85861.0,85859.0,0.23455292]
[1765821597726,0.0004,85864.0,85859.0,0.00161287]
[1765821597727,0.03111413,85863.0,85859.0,0.00161287]
[1765821597959,0.0004,85864.0,85859.0,0.00161287]
[1765821597960,0.11650482,85860.0,85859.0,0.00161287]
[1765821598195,0.0004,85864.0,85859.0,0.00161287]
[1765821598196,0.03111413,85862.0,85859.0,0.00161287]
[1765821598406,0.11630893,85860.0,85859.0,0.00161287]
[1765821599516,0.34924626,85860.0,85859.0,0.00861287]
[1765821599676,0.11630893,85860.0,85859.0,0.00861287]
[1765821599876,0.34924626,85860.0,85859.0,0.00461287]
[1765821600279,0.34924626,85860.0,85859.0,0.003]
[1765821600280,0.29109735,85860.0,85859.0,0.003]
[1765821600479,0.29109735,85860.0,85859.0,0.007]
[1765821600683,0.96211935,85860.0,85859.0,0.007]
[1765821600886,0.98699911,85860.0,85859.0,0.007]
[1765821601286,0.67100652,85860.0,85859.0,0.004]
[1765821601512,0.62958816,85860.0,85859.0,0.007]
[1765821601711,0.92028816,85860.0,85859.0,0.007]
[1765821602067,1.00713294,85860.0,85859.0,0.004]
[1765821602288,1.00713294,85860.0,85859.0,0.006]
[1765821602489,1.00713294,85860.0,85850.0,0.04019372]
[1765821602490,2.39928907,85851.0,85850.0,0.04019372]
[1765821602706,1.73165136,85851.0,85850.0,0.04019372]
[1765821602906,1.02959482,85841.0,85840.0,2.84402134]
[1765821603062,1.05447458,85841.0,85840.0,2.84402134]
[1765821603432,1.07299458,85841.0,85840.0,2.7152534]
[1765821603622,1.1040464,85841.0,85840.0,2.7152534]
[1765821604292,1.09998228,85841.0,85840.0,2.7152534]
[1765821604471,1.06893046,85841.0,85840.0,2.7152534]
[1765821604934,1.09762294,85841.0,85840.0,2.7152534]
[1765821605831,1.13902537,85841.0,85840.0,2.7152534]
[1765821606042,1.14764133,85841.0,85840.0,2.7152534]
[1765821606243,1.15842272,85841.0,85840.0,2.7152534]
[1765821606499,1.27475387,85841.0,85840.0,2.7152534]
[1765821606703,1.16042272,85841.0,85840.0,2.7152534]
[1765821606905,1.22453452,85841.0,85840.0,2.7152534]
[1765821607124,1.16242272,85841.0,85840.0,2.67443023]
[1765821607327,1.15847323,85841.0,85840.0,2.67443023]
[1765821607528,1.27480438,85841.0,85840.0,2.67443023]
[1765821607958,1.27480419,85841.0,85840.0,2.67443023]
[1765821608163,1.27480419,85841.0,85840.0,1.84924087]
[1765821608164,1.36108266,85841.0,85840.0,1.84924087]
[1765821608364,1.35908266,85841.0,85840.0,1.84924087]
[1765821608603,1.35908266,85841.0,85840.0,1.49395217]
[1765821608790,1.25528419,85841.0,85840.0,1.49395217]
[1765821608949,1.27380419,85841.0,85840.0,1.49395217]
[1765821609162,1.30185397,85841.0,85840.0,1.49395217]
[1765821609412,1.27080419,85841.0,85840.0,1.49395217]
[1765821609737,1.36856449,85841.0,85840.0,0.25913847]
[1765821609932,1.36856449,85841.0,85830.0,10.12674789]
[1765821609933,2.63199438,85831.0,85830.0,10.05092071]
[1765821610076,2.63199438,85831.0,85830.0,9.75688584]
[1765821610077,2.66765534,85831.0,85830.0,9.75688584]
[1765821610305,2.66765534,85831.0,85830.0,9.55431077]
[1765821610481,2.66765534,85831.0,85830.0,9.119458]
[1765821610482,2.71049918,85831.0,85830.0,9.119458]
[1765821610683,2.75188764,85831.0,85830.0,8.69801074]
[1765821610892,2.71049918,85831.0,85830.0,8.4253488]
[1765821611172,0.8869037,85831.0,85830.0,1.30556772]
[1765821611324,2.86540821,85831.0,85830.0,0.3506022]
[1765821611489,0.50299997,85830.0,85820.0,0.12632725]
[1765821611688,0.50299997,85830.0,85750.0,0.0116618]
[1765821611689,0.2907,85779.0,85759.0,0.01166058]
[1765821611892,0.11630893,85763.0,85761.0,0.24486559]
[1765821612149,0.11630893,85763.0,85761.0,0.05007031]
[1765821612352,0.11630893,85763.0,85761.0,0.00161287]
[1765821612553,0.00999313,85762.0,85761.0,0.00161287]
[1765821613094,0.00999313,85762.0,85761.0,0.00861287]
[1765821613536,0.00999313,85762.0,85761.0,0.01561287]
[1765821613741,0.00999313,85762.0,85761.0,0.00861287]
[1765821614158,0.00999313,85762.0,85761.0,0.007]
[1765821614366,0.00999313,85762.0,85756.0,0.0002]
[1765821614367,0.11630893,85757.0,85756.0,0.0002]
[1765821614571,0.64022604,85757.0,85756.0,0.0002]
[1765821614958,0.75642067,85757.0,85756.0,0.0002]
[1765821615588,0.75742067,85757.0,85756.0,0.0062]
[1765821615812,2.06921167,85757.0,85756.0,0.0062]
[1765821616004,2.11923006,85757.0,85756.0,0.0062]
[1765821616339,2.57394094,85755.0,85754.0,0.0002]
[1765821616601,2.70876987,85755.0,85754.0,0.0002]
[1765821616833,0.23326063,85741.0,85740.0,0.06158803]
[1765821616978,0.95536995,85741.0,85740.0,0.06158803]
[1765821617187,1.09617344,85737.0,85730.0,0.06499392]
[1765821617390,1.09617344,85737.0,85710.0,0.0994495]
[1765821617588,1.09617344,85737.0,85720.0,0.06567619]
[1765821618125,1.21236807,85737.0,85720.0,0.06567619]
[1765821618472,0.40700893,85721.0,85720.0,0.05545645]
[1765821618679,0.42552893,85721.0,85720.0,0.00011461]
[1765821619625,0.42652893,85721.0,85720.0,0.00611461]
[1765821620228,0.42752893,85721.0,85720.0,0.00611461]
[1765821620555,0.42752893,85721.0,85720.0,0.00772748]
[1765821620556,0.002,85721.0,85720.0,0.00772748]
[1765821621223,0.11830893,85721.0,85720.0,0.00772748]
[1765821621686,0.11830893,85721.0,85720.0,0.00611461]
[1765821622696,0.40900893,85721.0,85720.0,0.00611461]
[1765821622870,0.87429193,85721.0,85720.0,0.00611461]
[1765821623325,0.9093519,85721.0,85720.0,0.00611461]
[1765821623471,0.95937029,85721.0,85720.0,0.00611461]
[1765821623671,0.95837029,85721.0,85720.0,0.00011461]
[1765821624108,0.5944439,85721.0,85720.0,0.00211461]
[1765821624287,0.82775895,85721.0,85720.0,0.00211461]
[1765821624489,0.82875895,85721.0,85720.0,0.00211461]
[1765821624890,0.5954439,85721.0,85720.0,0.00211461]
[1765821625524,0.5954439,85721.0,85720.0,0.00011461]
[1765821625726,0.5944439,85721.0,85720.0,0.00211461]
[1765821626128,0.5954439,85721.0,85720.0,0.00211461]
[1765821626353,0.5944439,85721.0,85720.0,0.00211461]
[1765821626507,0.4420689,85721.0,85720.0,0.00211461]
[1765821626725,0.51747593,85721.0,85720.0,0.00211461]
[1765821626924,0.51747593,85721.0,85720.0,0.00011461]
[1765821627296,0.2917,85721.0,85720.0,0.00111461]
[1765821627450,0.42556893,85721.0,85720.0,0.00111461]
[1765821627795,0.42556893,85721.0,85720.0,0.00172748]
[1765821627945,0.01856,85721.0,85720.0,0.00172748]
[1765821628149,0.01856,85721.0,85720.0,0.00372748]
[1765821628549,0.01856,85721.0,85720.0,0.00172748]
[1765821629138,0.01856,85721.0,85720.0,0.00572748]
[1765821629349,0.13486893,85721.0,85720.0,0.00572748]
[1765821629465,0.13586893,85721.0,85720.0,0.00572748]
[1765821631124,0.01956,85721.0,85720.0,0.00572748]
[1765821631313,0.001,85721.0,85720.0,0.13027268]
[1765821631512,0.001,85721.0,85720.0,0.20416268]
[1765821631722,0.06199266,85752.0,85720.0,0.20416268]
[1765821631723,0.03099473,85749.0,85747.0,0.23324404]
[1765821631954,0.00999313,85749.0,85747.0,0.00161287]
[1765821632730,0.02855313,85752.0,85747.0,0.00161287]
[1765821632924,0.01856,85752.0,85751.0,0.23323343]
[1765821633359,0.01856,85752.0,85747.0,0.00172748]
[1765821633576,0.11630893,85749.0,85747.0,0.00172748]
[1765821633774,0.11630893,85748.0,85747.0,0.00172748]
[1765821633951,0.11630893,85748.0,85747.0,0.00472748]
[1765821634132,0.01956,85752.0,85750.0,0.23323615]
[1765821634470,0.01956,85752.0,85750.0,0.00161287]
[1765821635320,0.05055473,85752.0,85750.0,0.00161287]
[1765821635519,0.04167145,85751.0,85750.0,0.00161287]
[1765821635951,0.01067672,85751.0,85747.0,0.00111461]
[1765821636153,0.01067672,85751.0,85747.0,0.00011461]
[1765821636488,0.11630893,85748.0,85747.0,0.00011461]
[1765821637141,0.12700302,85748.0,85747.0,0.00011461]
[1765821637351,0.15155571,85748.0,85747.0,0.00111461]
[1765821637548,0.15155571,85748.0,85747.0,0.00011461]
[1765821637757,0.15155571,85748.0,85747.0,0.00311461]
[1765821638314,0.21354837,85748.0,85747.0,0.00311461]
[1765821638530,0.15155571,85748.0,85747.0,0.00311461]
[1765821638727,1.39632371,85748.0,85747.0,0.00311461]
[1765821639027,1.17238193,85731.0,85730.0,0.03295915]
[1765821639240,0.52019971,85731.0,85730.0,0.00011476]
[1765821639495,0.44079771,85731.0,85730.0,0.00011476]
[1765821639634,0.43033171,85731.0,85730.0,0.00011476]
[1765821639818,0.72103171,85731.0,85730.0,0.00011476]
[1765821640022,0.7710501,85731.0,85730.0,0.00011476]
[1765821640480,0.46081571,85731.0,85730.0,0.00011476]
[1765821640720,0.52359407,85731.0,85730.0,0.00211476]
[1765821640947,0.34550678,85731.0,85730.0,0.00711476]
[1765821641161,0.34550678,85731.0,85730.0,0.24201819]
[1765821641162,0.06713912,85731.0,85730.0,0.24201819]
[1765821641367,0.03624678,85731.0,85730.0,0.23701819]
[1765821641578,0.05646177,85731.0,85730.0,0.23701819]
[1765821641769,0.02555269,85731.0,85730.0,0.23901819]
[1765821641985,0.02455269,85731.0,85730.0,0.23701819]
[1765821642302,0.02455269,85731.0,85730.0,0.23801819]
[1765821642303,0.06719344,85731.0,85730.0,0.23801819]
[1765821642507,0.03528436,85731.0,85730.0,0.23701819]
[1765821642756,0.05548074,85731.0,85730.0,0.23701819]
[1765821643000,0.06721241,85731.0,85730.0,0.23701819]
[1765821643170,0.06721241,85731.0,85730.0,0.23901819]
[1765821643171,0.03628436,85731.0,85730.0,0.23901819]
[1765821643574,0.02555269,85731.0,85730.0,0.35569819]
[1765821643735,0.02555269,85731.0,85730.0,0.35369819]
[1765821643941,0.02555269,85731.0,85730.0,0.35669819]
[1765821644159,0.02555269,85731.0,85730.0,0.47302934]
[1765821644376,0.02555269,85731.0,85730.0,0.58945979]
[1765821645278,0.02455269,85731.0,85730.0,0.58745979]
[1765821645483,0.02555269,85731.0,85730.0,0.58945979]
[1765821645888,0.06177836,85746.0,85730.0,0.58945979]
[1765821645889,0.04130301,85749.0,85747.0,0.23324431]
[1765821646096,0.03553724,85748.0,85747.0,0.23485718]
[1765821646883,0.03553724,85748.0,85747.0,0.35353718]
[1765821647160,0.11619463,85770.0,85769.0,0.23318448]
[1765821647276,0.11619463,85770.0,85769.0,0.23479735]
[1765821647718,0.01856,85781.0,85775.0,0.24482417]
[1765821647954,0.01856,85781.0,85775.0,0.0116584]
[1765821648194,0.11619463,85781.0,85778.0,0.011658]
[1765821648336,0.11619463,85781.0,85779.0,0.23315516]
[1765821648544,0.11619463,85781.0,85777.0,0.01165813]
[1765821648722,0.11619463,85781.0,85775.0,0.00172763]
[1765821649124,0.05825995,85780.0,85775.0,0.00172763]
[1765821649346,0.17445458,85781.0,85775.0,0.00172763]
[1765821649648,0.11619463,85781.0,85775.0,0.00172763]
[1765821650009,0.11619463,85781.0,85775.0,0.00011476]
[1765821650010,0.11719463,85781.0,85775.0,0.00011476]
[1765821650218,0.00999313,85779.0,85775.0,0.00011476]
[1765821650420,0.00999313,85779.0,85776.0,0.01165827]
[1765821650626,0.00999313,85779.0,85775.0,0.00011476]
[1765821650823,0.05825995,85776.0,85775.0,0.00011476]
[1765821651450,0.11630893,85776.0,85775.0,0.00011476]
[1765821653133,0.40700893,85776.0,85775.0,0.00011476]
[1765821653886,0.64017438,85776.0,85775.0,0.00011476]
[1765821654109,0.40700893,85776.0,85775.0,0.00011476]
[1765821654402,0.51265893,85776.0,85775.0,0.00011476]
[1765821655935,0.51365893,85776.0,85775.0,0.00011476]
[1765821656134,0.51265893,85776.0,85775.0,0.00011476]
[1765821656575,0.51665893,85776.0,85775.0,0.00011476]
[1765821657363,0.44525503,85776.0,85775.0,0.00011476]
[1765821657968,0.45601848,85776.0,85775.0,0.00011476]
[1765821658150,0.48081894,85776.0,85775.0,0.00011476]
[1765821658693,0.53083733,85776.0,85775.0,0.00011476]
[1765821661298,0.76400278,85776.0,85775.0,0.00011476]
[1765821661517,0.26153397,85776.0,85775.0,0.00011476]
[1765821661737,0.26153397,85776.0,85775.0,0.2348958]
[1765821661738,0.01476345,85776.0,85775.0,0.2348958]
[1765821661940,0.004,85776.0,85775.0,0.26055708]
[1765821662539,0.003,85776.0,85775.0,0.00172763]
[1765821662760,0.011658,85778.0,85775.0,0.00011476]
[1765821662761,0.01076345,85778.0,85775.0,0.00011476]
[1765821662919,0.11632006,85778.0,85775.0,0.00011476]
[1765821663133,0.01076345,85777.0,85775.0,0.00211476]
[1765821663491,0.01076345,85777.0,85776.0,0.23316545]
[1765821663693,0.02480046,85789.0,85776.0,0.23316545]
[1765821663694,0.0107775,85789.0,85788.0,0.23313283]
[1765821663913,0.2907,85791.0,85772.0,0.11643045]
[1765821664125,0.0107775,85790.0,85785.0,0.01165704]
[1765821664352,0.0107775,85790.0,85786.0,0.01165691]
[1765821664563,0.11632006,85786.0,85780.0,0.02304212]
[1765821664779,0.11619463,85788.0,85780.0,0.02304212]
[1765821664780,0.11632006,85781.0,85780.0,0.02304212]
[1765821664999,0.11632006,85786.0,85776.0,0.00161287]
[1765821665210,0.001,85778.0,85776.0,0.00161287]
[1765821665565,0.11632006,85786.0,85778.0,0.011658]
[1765821665728,0.01077239,85785.0,85778.0,0.011658]
[1765821665930,0.11632006,85786.0,85780.0,0.01165772]
[1765821666214,0.11632006,85786.0,85776.0,0.00161287]
[1765821666423,0.11619463,85788.0,85777.0,0.01165813]
[1765821666598,0.11632006,85780.0,85776.0,0.00361287]
[1765821666781,0.11632006,85780.0,85776.0,0.00261287]
[1765821667016,0.11732006,85786.0,85776.0,0.00261287]
[1765821667220,0.11732006,85786.0,85776.0,0.01427114]
[1765821667418,0.12797697,85786.0,85776.0,0.00261287]
[1765821667642,0.15265173,85788.0,85776.0,0.01427114]
[1765821667848,0.11632006,85786.0,85776.0,0.00261287]
[1765821668250,0.01165677,85787.0,85776.0,0.01427114]
[1765821668452,0.11638002,85786.0,85776.0,0.00161287]
[1765821668787,0.12803693,85786.0,85776.0,0.00261287]
[1765821668927,0.05825995,85777.0,85776.0,0.00161287]
[1765821669745,0.11631365,85777.0,85776.0,0.00161287]
[1765821670150,0.11631365,85777.0,85776.0,0.00261287]
[1765821670468,0.11631365,85777.0,85776.0,0.00361287]
[1765821671403,0.11638475,85777.0,85776.0,0.00361287]
[1765821671980,0.11638475,85780.0,85776.0,0.01527114]
[1765821672162,0.00999313,85784.0,85781.0,0.01165759]
[1765821672508,0.11619463,85788.0,85783.0,0.23314105]
[1765821672509,0.23257938,85788.0,85783.0,0.23314105]
[1765821672678,0.23257938,85788.0,85781.0,0.00161287]
[1765821673067,0.01165609,85792.0,85781.0,0.00161287]
[1765821673068,0.03481956,85799.0,85798.0,0.23310566]
[1765821673331,0.2907,85800.0,85798.0,0.23310566]
[1765821673332,0.02171179,85808.0,85801.0,0.01165487]
[1765821673563,0.50999313,85809.0,85806.0,0.24473689]
[1765821673737,0.50999313,85809.0,85807.0,0.23307965]
[1765821673738,0.5,85809.0,85807.0,0.23307965]
[1765821673946,0.5,85809.0,85807.0,0.23469252]
[1765821674104,0.5,85809.0,85808.0,0.22235086]
[1765821674500,0.00038201,85809.0,85808.0,0.22235086]
[1765821674698,0.00038201,85809.0,85808.0,0.51305086]
[1765821675106,0.00038201,85809.0,85808.0,0.62948131]
[1765821675515,0.00038201,85809.0,85808.0,0.63448131]
[1765821676128,0.00038201,85809.0,85808.0,0.6844997]
[1765821676337,0.03822307,85839.0,85837.0,0.00396763]
[1765821676533,0.03822307,85839.0,85836.0,0.24465131]
[1765821676757,0.05816002,85843.0,85836.0,0.01165012]
[1765821676988,0.01164985,85838.0,85819.0,0.03647]
[1765821677164,0.25,85840.0,85828.0,0.24467381]
[1765821677367,0.01164917,85843.0,85831.0,0.0116508]
[1765821677884,0.01164944,85841.0,85831.0,0.0116508]
[1765821678104,0.01164944,85841.0,85830.0,0.03138659]
[1765821678293,0.01164971,85839.0,85830.0,0.01973566]
[1765821678495,0.01164944,85841.0,85831.0,0.0287719]
[1765821678775,0.12784516,85833.0,85830.0,0.01972667]
[1765821679023,0.11619463,85833.0,85824.0,0.01326462]
[1765821679171,0.1232963,85833.0,85824.0,0.00161287]
[1765821679367,0.11638475,85828.0,85824.0,0.00161287]
[1765821679573,0.11638475,85828.0,85825.0,0.01165161]
[1765821679969,0.11164577,85833.0,85830.0,0.01165093]
[1765821680233,0.11164577,85833.0,85831.0,0.23301447]
[1765821681626,0.11638475,85838.0,85835.0,0.01165025]
[1765821681824,0.11638475,85840.0,85837.0,0.01164998]
[1765821682097,0.11638475,85842.0,85840.0,0.01164958]
[1765821682320,0.19008747,85846.0,85840.0,0.00388695]
[1765821682522,0.2907,85847.0,85835.0,0.01165025]
[1765821682523,0.06205396,85843.0,85835.0,0.01165025]
[1765821682694,0.06205396,85846.0,85836.0,0.01165012]
[1765821682895,0.06205396,85846.0,85837.0,0.01164998]
[1765821683222,0.002,85842.0,85837.0,0.24464855]
[1765821683425,0.002,85842.0,85841.0,0.23298889]
[1765821683599,0.11638475,85849.0,85847.0,0.23297261]
[1765821683600,0.06205396,85849.0,85847.0,0.23297261]
[1765821683826,0.06205396,85854.0,85853.0,0.23295633]
[1765821684130,0.06205396,85856.0,85852.0,0.01164795]
[1765821684445,0.06205396,85857.0,85852.0,0.01164795]
[1765821684646,0.06205396,85857.0,85853.0,0.23295578]
[1765821684868,0.06205396,85858.0,85853.0,0.33079961]
[1765821685071,0.12021398,85858.0,85853.0,0.09784383]
[1765821685266,0.01074806,85854.0,85853.0,0.09784383]
[1765821685468,0.01074806,85854.0,85842.0,0.0116493]
[1765821685686,0.333581,85851.0,85840.0,0.04134807]
[1765821685870,0.01074806,85850.0,85840.0,0.01164958]
[1765821686071,0.01074806,85852.0,85844.0,0.01164903]
[1765821686290,0.01074806,85853.0,85843.0,0.23298172]
[1765821686495,0.01074806,85853.0,85844.0,0.01164903]
[1765821686496,0.11638475,85847.0,85844.0,0.01164903]
[1765821686693,0.01074806,85846.0,85844.0,0.24462929]
[1765821687139,0.01074806,85849.0,85846.0,0.24462213]
[1765821687555,0.01074806,85849.0,85847.0,0.23297235]
[1765821687855,0.01074806,85854.0,85851.0,0.01164808]
[1765821687992,0.01074806,85854.0,85852.0,0.2609139]
[1765821688205,0.00697604,85854.0,85852.0,0.26252677]
[1765821688406,0.06205396,85858.0,85856.0,0.23294768]
[1765821688588,0.06205396,85860.0,85859.0,0.23294005]
[1765821688792,0.2445,85864.0,85862.0,0.23293191]
[1765821688793,0.06205396,85863.0,85862.0,0.23293191]
[1765821689008,0.06205396,85863.0,85850.0,0.03285964]
[1765821689009,0.23294005,85859.0,85850.0,0.03285964]
[1765821689216,0.306547,85856.0,85850.0,0.01164822]
[1765821689484,0.277047,85856.0,85849.0,0.01164835]
[1765821689629,0.24985,85856.0,85844.0,0.01164903]
[1765821689837,0.06190774,85855.0,85845.0,0.0116489]